bitfinex-derivatives/quotes_SOLF0:USTF0_20241002
["timestamp","ask_amount","ask_price","bid_price","bid_amount"]
[1727836779190,2.7315,146.46,146.45,0.12502]
[1727836783189,2.7329,146.39,146.35,2.7335]
[1727836783393,0.12502,146.45,146.35,2.7335]
[1727836783394,18.20879377,146.42,146.35,2.7335]
[1727836783892,17.3841,146.44,146.38,2.733]
[1727836784091,17.3841,146.44,146.34,14.74]
[1727836784394,3.3642894,146.43,146.34,14.74]
[1727836784800,2.7328,146.4,146.33,0.12502]
[1727836785198,14.74,146.42,146.33,0.12502]
[1727836785697,2.7328,146.39,146.35,2.7334]
[1727836788998,14.74,146.36,146.27,0.12502]
[1727836789303,14.74,146.36,146.28,1.3086]
[1727836790189,14.74,146.34,146.28,1.3086]
[1727836790503,14.74,146.34,146.27,0.12502]
[1727836790695,2.7347,146.29,146.27,0.12502]
[1727836790896,14.74,146.34,146.27,0.12502]
[1727836791397,2.7348,146.29,146.27,0.12502]
[1727836792699,2.7348,146.28,146.27,0.12502]
[1727836793904,17.4748,146.28,146.27,0.12502]
[1727836795202,2.7348,146.28,146.27,0.12502]
[1727836798708,17.4748,146.28,146.27,0.12502]
[1727836800300,2.7357,146.24,146.21,2.86112]
[1727836801911,1.2775,146.28,146.21,0.12502]
[1727836802116,16.0175,146.28,146.22,2.7358]
[1727836802405,16.0175,146.28,146.21,0.12502]
[1727836802810,2.7355,146.25,146.21,2.86112]
[1727836803002,16.0175,146.28,146.21,2.86112]
[1727836803201,2.7354,146.26,146.22,2.7359]
[1727836803405,16.0175,146.28,146.22,2.7359]
[1727836804116,2.7355,146.25,146.22,2.7359]
[1727836804313,2.7355,146.25,146.21,0.12502]
[1727836804314,2.7355,146.25,146.21,2.86112]
[1727836805316,2.7356,146.24,146.21,2.86112]
[1727836805904,14.74,146.27,146.21,2.86112]
[1727836806209,2.7354,146.25,146.21,2.86112]
[1727836806603,2.7356,146.24,146.21,2.86112]
[1727836806809,14.74,146.27,146.21,2.86112]
[1727836807215,14.74,146.27,146.21,0.12502]
[1727836807704,2.7356,146.25,146.21,0.12502]
[1727836808303,2.7356,146.25,146.21,2.86102]
[1727836808512,14.74,146.27,146.21,0.12502]
[1727836809515,2.7354,146.25,146.21,2.86112]
[1727836811606,76.4348,146.32,146.23,9.45]
[1727836811815,9.45,146.27,146.23,9.45]
[1727836812212,9.45,146.27,146.22,1.2974]
[1727836812917,12.1851,146.27,146.24,2.7355]
[1727836813907,9.45,146.26,146.22,1.2974]
[1727836814114,12.1856,146.24,146.21,2.86102]
[1727836814524,9.45,146.23,146.21,0.12502]
[1727836815506,2.7356,146.24,146.21,0.12502]
[1727836816415,2.7356,146.24,146.21,2.86112]
[1727836817912,2.7359,146.23,146.21,0.12502]
[1727836818913,14.78,146.25,146.21,2.86112]
[1727836819115,14.78,146.25,146.21,0.12502]
[1727836819319,2.7355,146.25,146.22,2.7359]
[1727836819520,14.78,146.26,146.21,0.12502]
[1727836820918,2.7357,146.24,146.21,2.86102]
[1727836821117,14.78,146.23,146.21,0.12502]
[1727836821720,17.516,146.22,146.21,0.12502]
[1727836822517,2.7366,146.19,146.15,0.12502]
[1727836823124,2.7366,146.19,146.16,2.737]
[1727836826525,1.3649,146.25,146.18,2.7365]
[1727836826526,2.736,146.22,146.18,2.7365]
[1727836826725,2.736,146.22,146.15,0.12502]
[1727836827227,2.736,146.22,146.17,2.7369]
[1727836827424,2.736,146.22,146.15,0.12502]
[1727836827824,2.736,146.22,146.18,2.7366]
[1727836828627,14.78,146.23,146.15,0.12502]
[1727836828822,1.3649,146.25,146.15,14.90502]
[1727836828823,2.7356,146.24,146.15,14.90502]
[1727836829022,2.7356,146.24,146.16,1.3775]
[1727836829223,17.5155,146.25,146.21,2.7361]
[1727836829416,14.78,146.25,146.16,1.3775]
[1727836829922,14.78,146.25,146.16,2.7756]
[1727836830229,17.5156,146.25,146.21,2.736]
[1727836830530,14.78,146.25,146.21,2.736]
[1727836831124,2.7361,146.22,146.19,2.7365]
[1727836831523,14.78,146.25,146.19,2.7365]
[1727836832024,2.7358,146.23,146.19,2.7365]
[1727836832225,14.78,146.23,146.19,2.7365]
[1727836832423,14.78,146.21,146.16,2.737]
[1727836832623,2.6565,146.26,146.15,0.12502]
[1727836832833,14.78,146.21,146.15,0.12502]
[1727836833023,2.7365,146.2,146.16,2.7369]
[1727836833425,2.7365,146.2,146.15,0.12502]
[1727836833828,17.5162,146.21,146.17,2.7368]
[1727836834331,17.5162,146.21,146.18,2.7367]
[1727836834632,14.78,146.21,146.18,2.7367]
[1727836835733,14.78,146.21,146.19,2.7365]
[1727836836132,2.6565,146.26,146.15,14.90502]
[1727836836335,2.6565,146.26,146.19,2.7364]
[1727836836336,2.7358,146.23,146.19,2.7364]
[1727836838936,2.7361,146.22,146.19,2.7364]
[1727836839123,17.5161,146.22,146.19,2.7364]
[1727836839328,17.5161,146.22,146.15,0.12502]
[1727836839329,14.78,146.22,146.18,2.7366]
[1727836839540,14.78,146.22,146.15,0.12502]
[1727836840230,14.78,146.22,146.19,2.7364]
[1727836841837,17.516,146.22,146.19,2.7364]
[1727836843635,9.46,146.2,146.18,2.7366]
[1727836844334,9.46,146.21,146.16,9.46]
[1727836844931,9.46,146.19,146.15,0.12502]
[1727836845331,9.46,146.2,146.15,9.58502]
[1727836845732,9.46,146.2,146.18,2.7366]
[1727836845932,9.46,146.2,146.15,9.58502]
[1727836846337,9.46,146.2,146.16,2.737]
[1727836846642,9.46,146.2,146.15,9.58502]
[1727836847140,9.46,146.2,146.19,2.7365]
[1727836850550,2.736,146.22,146.19,2.7365]
[1727836850750,9.46,146.2,146.19,2.7365]
[1727836850950,2.7359,146.23,146.15,9.58502]
[1727836851163,2.6565,146.26,146.2,2.7362]
[1727836851459,9.46,146.22,146.2,2.7362]
[1727836851651,12.1961,146.22,146.15,0.12502]
[1727836851846,9.46,146.2,146.18,2.7366]
[1727836852757,9.46,146.2,146.16,9.46]
[1727836853050,9.46,146.2,146.19,2.7365]
[1727836855858,9.46,146.2,146.16,9.46]
[1727836857261,9.46,146.2,146.19,2.7365]
[1727836862952,9.46,146.2,146.18,2.7367]
[1727836863559,2.6565,146.26,146.16,9.46]
[1727836863755,9.46,146.2,146.19,2.7365]
[1727836864172,9.46,146.21,146.16,9.46]
[1727836864372,1.3003,146.26,146.19,9.46]
[1727836864665,9.46,146.25,146.19,9.46]
[1727836864865,12.1955,146.25,146.22,2.7359]
[1727836865061,2.7355,146.25,146.22,2.7359]
[1727836865369,9.46,146.24,146.19,9.46]
[1727836866174,9.46,146.24,146.22,2.7359]
[1727836866473,9.46,146.23,146.22,2.7359]
[1727836867975,9.46,146.23,146.17,1.3726]
[1727836868164,9.46,146.2,146.17,1.3726]
[1727836869267,9.46,146.2,146.19,2.7365]
[1727836869465,9.46,146.21,146.19,2.7365]
[1727836872867,9.46,146.21,146.17,10.8326]
[1727836873380,9.46,146.21,146.19,2.7364]
[1727836873673,9.46,146.21,146.16,9.46]
[1727836874079,9.46,146.21,146.18,2.7366]
[1727836874780,9.46,146.21,146.19,2.7365]
[1727836875073,9.46,146.2,146.15,9.58502]
[1727836875280,9.46,146.21,146.19,2.7365]
[1727836875976,9.46,146.21,146.18,2.7367]
[1727836876474,9.46,146.21,146.15,9.58502]
[1727836876769,9.46,146.21,146.19,2.7365]
[1727836876974,1.46662,146.27,146.17,9.46]
[1727836877163,12.1958,146.23,146.2,2.7362]
[1727836878878,9.46,146.21,146.2,2.7362]
[1727836879779,9.46,146.21,146.19,2.7365]
[1727836879982,9.46,146.21,146.16,9.46]
[1727836880276,9.46,146.21,146.19,2.7364]
[1727836882279,2.7356,146.24,146.2,2.7362]
[1727836882472,9.46,146.23,146.17,9.46]
[1727836882975,12.1958,146.23,146.2,2.7362]
[1727836883879,9.46,146.22,146.2,2.7362]
[1727836884874,12.196,146.22,146.2,2.7362]
[1727836888272,9.46,146.22,146.2,2.7362]
[1727836888682,9.46,146.22,146.17,9.46]
[1727836888878,9.46,146.22,146.21,2.7362]
[1727836890279,9.46,146.23,146.21,2.7362]
[1727836890981,1.46662,146.27,146.19,9.46]
[1727836891187,9.46,146.25,146.21,9.46]
[1727836891883,9.46,146.25,146.22,2.7359]
[1727836892585,12.1954,146.25,146.22,2.7359]
[1727836893587,9.46,146.24,146.22,2.7359]
[1727836897280,9.46,146.23,146.18,9.46]
[1727836897492,9.46,146.23,146.2,2.7362]
[1727836897991,9.46,146.23,146.21,2.7361]
[1727836898795,9.46,146.22,146.2,2.7362]
[1727836901185,12.196,146.22,146.19,2.7364]
[1727836901487,9.46,146.22,146.19,2.7364]
[1727836902782,9.46,146.22,146.2,2.7363]
[1727836904595,12.196,146.22,146.19,2.7365]
[1727836908796,9.46,146.2,146.17,2.7368]
[1727836908996,9.46,146.19,146.17,2.7368]
[1727836911095,9.46,146.19,146.16,2.737]
[1727836913003,9.46,146.19,146.17,2.7368]
[1727836916503,9.46,146.21,146.15,9.58502]
[1727836917006,9.46,146.21,146.18,2.7366]
[1727836917502,12.1962,146.21,146.18,2.7366]
[1727836917801,9.46,146.19,146.17,2.7368]
[1727836918507,9.46,146.19,146.15,0.12502]
[1727836918798,9.46,146.18,146.15,0.12502]
[1727836919504,9.46,146.18,146.16,2.7369]
[1727836919699,9.46,146.17,146.15,0.12502]
[1727836922393,12.1969,146.17,146.15,0.12502]
[1727836923906,2.7371,146.16,146.15,0.12502]
[1727836924405,9.46,146.17,146.09,0.12502]
[1727836924604,9.46,146.12,146.09,0.12502]
[1727836925201,9.46,146.12,146.11,2.738]
[1727836927604,9.46,146.12,146.1,2.7381]
[1727836927801,9.46,146.11,146.1,2.7381]
[1727836928005,9.46,146.11,146.09,0.12502]
[1727836929402,9.46,146.11,146.1,2.7382]
[1727836929605,9.46,146.11,146.09,0.12502]
[1727836930004,9.46,146.11,146.09,2.86322]
[1727836930709,9.46,146.11,146.09,0.12502]
[1727836930911,2.7375,146.14,146.1,2.7382]
[1727836931104,9.46,146.11,146.1,2.7382]
[1727836932407,6.6717,146.18,146.14,2.7374]
[1727836932610,9.46,146.15,146.09,9.58502]
[1727836933007,9.46,146.15,146.14,2.7375]
[1727836934419,9.46,146.15,146.09,0.12502]
[1727836934621,9.46,146.13,146.09,0.12502]
[1727836935017,9.46,146.13,146.12,2.7377]
[1727836935213,9.46,146.13,146.09,0.12502]
[1727836935416,2.6684,146.18,146.09,0.12502]
[1727836935417,9.46,146.11,146.09,0.12502]
[1727836935913,9.46,146.12,146.11,2.7378]
[1727836937527,2.7369,146.17,146.09,0.12502]
[1727836937825,9.46,146.14,146.09,0.12502]
[1727836938023,9.46,146.14,146.13,2.7375]
[1727836944927,9.46,146.14,146.12,2.7378]
[1727836945122,9.46,146.13,146.12,2.7378]
[1727836946631,9.46,146.13,146.1,2.7381]
[1727836946836,2.6684,146.18,146.1,2.7381]
[1727836946837,9.46,146.11,146.1,2.7381]
[1727836948230,9.46,146.12,146.11,2.738]
[1727836950526,9.46,146.12,146.09,2.86332]
[1727836950731,9.46,146.11,146.09,0.12502]
[1727836951233,9.46,146.11,146.1,2.7382]
[1727836953331,9.46,146.14,146.13,2.7375]
[1727836954431,2.7369,146.17,146.09,9.58502]
[1727836954637,9.46,146.15,146.09,9.58502]
[1727836955138,9.46,146.15,146.13,2.7376]
[1727836955837,9.46,146.15,146.09,9.58502]
[1727836956037,9.46,146.15,146.12,2.7377]
[1727836956739,9.46,146.14,146.12,2.7377]
[1727836963945,9.46,146.14,146.09,0.12502]
[1727836964142,9.46,146.14,146.13,2.7376]
[1727836964740,9.46,146.15,146.13,2.7376]
[1727836964946,9.46,146.15,146.1,9.46]
[1727836965549,9.46,146.15,146.13,2.7375]
[1727836965756,5.4051,146.18,146.11,9.46]
[1727836966048,9.46,146.17,146.11,9.46]
[1727836966343,9.46,146.17,146.12,2.7377]
[1727836966548,9.46,146.17,146.11,9.46]
[1727836967140,9.46,146.17,146.14,2.7373]
[1727836968148,9.46,146.17,146.15,2.7372]
[1727836968338,2.7364,146.2,146.13,9.46]
[1727836968541,9.46,146.19,146.14,9.46]
[1727836968740,9.46,146.19,146.17,2.7367]
[1727836975549,9.46,146.18,146.15,2.7372]
[1727836976857,12.1967,146.18,146.15,2.7372]
[1727836977154,9.46,146.18,146.15,2.7372]
[1727836978857,12.1967,146.18,146.15,2.7372]
[1727836979460,9.46,146.17,146.15,2.7372]
[1727836980951,12.1967,146.18,146.15,2.7372]
[1727836981656,9.46,146.19,146.14,9.46]
[1727836981861,12.1964,146.2,146.17,2.7368]
[1727836982061,9.46,146.2,146.14,9.46]
[1727836982562,12.1964,146.2,146.14,9.46]
[1727836983656,12.1964,146.2,146.17,2.7368]
[1727836983857,9.46,146.2,146.15,9.46]
[1727836984662,12.1963,146.2,146.17,2.7368]
[1727836989465,2.7366,146.19,146.17,2.7368]
[1727836989761,9.46,146.2,146.17,2.7368]
[1727836990469,12.1964,146.2,146.17,2.7368]
[1727836992058,0.12502,146.21,146.2,2.7363]
[1727836992263,0.12502,146.21,146.2,12.1963]
[1727836993065,0.12502,146.27,146.2,9.46]
[1727836993257,0.12502,146.27,146.24,9.46]
[1727836993766,0.12502,146.27,146.26,2.7352]
[1727836994554,2.7352,146.26,146.23,2.7357]
[1727836994754,9.58502,146.27,146.19,9.46]
[1727836994755,9.46,146.24,146.19,9.46]
[1727836995166,12.1956,146.24,146.2,2.7363]
[1727836995968,9.46,146.24,146.17,2.6744]
[1727836996167,9.46,146.24,146.2,9.46]
[1727836996659,0.12502,146.27,146.17,1.3714]
[1727836996660,9.46,146.23,146.17,1.3714]
[1727836996866,9.46,146.23,146.19,9.46]
[1727836997063,9.46,146.24,146.19,9.46]
[1727836997253,12.1956,146.24,146.17,1.3714]
[1727836997455,9.46,146.21,146.17,1.3714]
[1727836997767,12.1959,146.23,146.19,2.7364]
[1727836998568,12.1959,146.23,146.17,9.46]
[1727836998763,9.46,146.23,146.19,9.46]
[1727836999271,9.46,146.23,146.2,2.7363]
[1727836999868,12.1958,146.23,146.2,2.7363]
[1727837000262,9.46,146.23,146.2,2.7363]
[1727837001664,0.12502,146.27,146.25,2.7353]
[1727837002374,0.12502,146.27,146.26,2.7352]
[1727837003366,0.12502,146.27,146.23,9.46]
[1727837003571,0.12502,146.27,146.25,2.7353]
[1727837003869,9.46,146.26,146.21,1.3052]
[1727837004063,9.46,146.26,146.24,2.7355]
[1727837004669,12.1954,146.25,146.22,2.7359]
[1727837004971,9.46,146.25,146.19,9.46]
[1727837005172,2.7356,146.24,146.21,2.7361]
[1727837005368,9.46,146.25,146.19,9.46]
[1727837005573,9.46,146.25,146.2,9.46]
[1727837005774,12.1953,146.26,146.22,2.7358]
[1727837006182,9.58502,146.27,146.22,9.46]
[1727837006373,0.12502,146.27,146.25,2.7353]
[1727837007276,9.58502,146.27,146.24,2.7355]
[1727837010071,0.12502,146.27,146.24,2.7355]
[1727837013675,0.12502,146.27,146.23,9.46]
[1727837013977,0.12502,146.27,146.24,9.46]
[1727837014385,0.12502,146.27,146.26,2.7352]
[1727837014780,0.12502,146.27,146.21,1.3228]
[1727837014983,0.12502,146.27,146.25,2.7353]
[1727837015784,0.12502,146.27,146.24,9.46]
[1727837015983,0.12502,146.27,146.26,2.7352]
[1727837020687,0.12502,146.27,146.25,2.7353]
[1727837021285,0.12502,146.27,146.26,2.7352]
[1727837024690,0.12502,146.27,146.26,12.1952]
[1727837026287,2.85902,146.33,146.3,2.7343]
[1727837027904,0.12502,146.33,146.3,2.7343]
[1727837028095,12.1942,146.32,146.29,2.7346]
[1727837031098,12.1942,146.32,146.3,2.7345]
[1727837031511,0.12502,146.33,146.3,9.46]
[1727837031910,0.12502,146.33,146.31,2.7341]
[1727837032100,0.12502,146.33,146.3,9.46]
[1727837032607,0.12502,146.33,146.31,2.7343]
[1727837033503,0.12502,146.33,146.32,2.7341]
[1727837033709,0.12502,146.33,146.32,12.1941]
[1727837039616,0.12502,146.33,146.3,2.7344]
[1727837039809,0.12502,146.33,146.3,9.46]
[1727837040213,0.12502,146.33,146.31,9.46]
[1727837040410,0.12502,146.33,146.32,2.7341]
[1727837042206,0.12502,146.33,146.32,12.1941]
[1727837042715,0.12502,146.33,146.31,2.7343]
[1727837044113,0.12502,146.33,146.32,2.7341]
[1727837045720,0.12502,146.33,146.32,12.1941]
[1727837051813,0.12502,146.33,146.32,2.7341]
[1727837056527,0.12502,146.33,146.29,1.3859]
[1727837056528,9.58502,146.33,146.29,1.3859]
[1727837056826,12.31902,146.33,146.28,9.46]
[1727837057018,9.46,146.32,146.27,9.46]
[1727837057217,12.1943,146.32,146.28,2.7347]
[1727837058924,12.1943,146.32,146.28,12.1947]
[1727837059129,12.1943,146.32,146.29,2.7345]
[1727837060426,9.46,146.31,146.24,3.9368]
[1727837060720,9.46,146.31,146.26,9.46]
[1727837060920,2.7347,146.29,146.26,12.1951]
[1727837061127,9.46,146.31,146.26,12.1951]
[1727837061521,2.7346,146.3,146.26,12.1951]
[1727837061825,2.7346,146.3,146.27,2.7349]
[1727837063230,2.85902,146.33,146.28,9.46]
[1727837063528,2.85902,146.33,146.24,2.6683]
[1727837063529,0.12502,146.33,146.31,9.46]
[1727837063725,0.12502,146.33,146.31,12.1942]
[1727837064029,0.12502,146.33,146.31,9.46]
[1727837064433,0.12502,146.33,146.32,12.1941]
[1727837072734,0.12502,146.33,146.31,2.7342]
[1727837072927,0.12502,146.33,146.25,4.0422]
[1727837073120,0.12502,146.33,146.29,9.46]
[1727837073430,0.12502,146.33,146.3,2.7343]
[1727837074026,0.12502,146.33,146.29,9.46]
[1727837074628,2.85902,146.33,146.29,12.1946]
[1727837075429,12.31902,146.33,146.29,12.1946]
[1727837075634,0.12502,146.33,146.3,9.46]
[1727837076232,0.12502,146.33,146.32,2.7341]
[1727837076829,0.12502,146.33,146.3,9.46]
[1727837077035,0.12502,146.33,146.31,2.7341]
[1727837078342,0.12502,146.33,146.32,12.1941]
[1727837093047,0.12502,146.33,146.31,2.7341]
[1727837093253,0.12502,146.33,146.3,9.46]
[1727837093650,0.12502,146.33,146.25,4.0422]
[1727837093651,0.12502,146.33,146.31,9.46]
[1727837094454,0.12502,146.33,146.32,2.7341]
[1727837096952,9.58502,146.33,146.29,9.46]
[1727837097149,9.58502,146.33,146.3,2.7345]
[1727837097756,9.58502,146.33,146.31,2.7343]
[1727837098459,0.12502,146.33,146.31,2.7343]
[1727837102060,0.12502,146.33,146.3,9.46]
[1727837102265,0.12502,146.33,146.32,2.7341]
[1727837103162,9.58502,146.33,146.3,2.7344]
[1727837103661,12.31902,146.33,146.29,9.46]
[1727837104055,9.58502,146.33,146.29,9.46]
[1727837104265,9.58502,146.33,146.31,2.7342]
[1727837105368,0.12502,146.33,146.32,2.7341]
[1727837105558,0.12502,146.33,146.32,12.1941]
[1727837106852,1.4007,146.41,146.32,12.1941]
[1727837106853,0.12502,146.39,146.32,9.46]
[1727837107057,0.12502,146.39,146.37,2.733]
[1727837108153,2.85782,146.39,146.37,2.733]
[1727837108554,12.31782,146.39,146.37,2.733]
[1727837108960,12.31782,146.39,146.36,2.7333]
[1727837109864,9.58502,146.39,146.37,2.7331]
[1727837110671,0.12502,146.39,146.38,12.193]
[1727837112454,0.12502,146.39,146.38,2.733]
[1727837114373,0.12502,146.39,146.36,9.46]
[1727837114568,0.12502,146.39,146.35,9.46]
[1727837114755,9.58502,146.39,146.35,9.46]
[1727837114956,12.31792,146.39,146.36,2.7332]
[1727837115368,2.733,146.38,146.35,12.1935]
[1727837115575,2.733,146.38,146.35,9.46]
[1727837115758,9.58502,146.39,146.35,9.46]
[1727837116475,0.12502,146.39,146.37,2.7331]
[1727837117461,9.58502,146.39,146.37,2.7331]
[1727837118064,12.31782,146.39,146.35,9.46]
[1727837118372,9.58502,146.39,146.35,9.46]
[1727837118875,9.58502,146.39,146.37,2.7332]
[1727837120067,9.46,146.38,146.3,1.325]
[1727837120268,9.46,146.36,146.31,9.46]
[1727837120475,9.46,146.34,146.31,9.46]
[1727837120669,9.46,146.34,146.3,1.325]
[1727837120873,9.46,146.34,146.32,2.7339]
[1727837121176,9.46,146.34,146.3,10.785]
[1727837121371,9.46,146.34,146.31,2.7342]
[1727837121775,9.46,146.34,146.29,9.46]
[1727837121970,2.7336,146.35,146.32,2.734]
[1727837122174,2.6236,146.38,146.32,9.46]
[1727837122175,9.46,146.36,146.32,9.46]
[1727837123063,2.7334,146.36,146.33,2.7338]
[1727837123266,1.3078,146.38,146.34,9.46]
[1727837123773,13.5008,146.38,146.35,2.7335]
[1727837127573,10.7678,146.38,146.36,2.7332]
[1727837127971,0.12502,146.39,146.34,9.46]
[1727837128181,0.12502,146.39,146.37,2.7331]
[1727837129482,9.58502,146.39,146.37,2.7331]
[1727837130176,0.12502,146.39,146.38,2.733]
[1727837133185,0.12502,146.39,146.36,2.7333]
[1727837133186,9.58502,146.39,146.36,2.7333]
[1727837133390,9.58502,146.39,146.34,9.46]
[1727837134180,9.58502,146.39,146.37,2.7331]
[1727837134387,0.12502,146.39,146.36,9.46]
[1727837135189,0.12502,146.39,146.37,2.733]
[1727837138482,0.12502,146.39,146.38,12.193]
[1727837143492,0.12502,146.45,146.38,9.46]
[1727837143690,0.12502,146.45,146.44,9.46]
[1727837144795,0.12502,146.45,146.44,12.1919]
[1727837146102,0.12502,146.45,146.44,2.7319]
[1727837153092,0.12502,146.45,146.44,12.1919]
[1727837155299,2.85672,146.45,146.42,2.7321]
[1727837155985,0.12502,146.45,146.42,12.1921]
[1727837156191,0.12502,146.45,146.43,2.732]
[1727837157895,0.12502,146.45,146.42,9.46]
[1727837158095,2.85682,146.45,146.42,2.7322]
[1727837158499,12.31682,146.45,146.42,2.7322]
[1727837160405,9.46,146.44,146.37,57.72966162]
[1727837160702,9.46,146.44,146.38,9.46]
[1727837160895,2.7322,146.43,146.4,2.7326]
[1727837161095,0.12502,146.45,146.4,9.46]
[1727837161301,9.58502,146.45,146.37,57.72966162]
[1727837161498,9.58502,146.45,146.4,9.46]
[1727837162201,2.7319,146.44,146.42,2.7322]
[1727837162403,2.7319,146.44,146.4,9.46]
[1727837162798,0.12502,146.45,146.41,9.46]
[1727837163099,0.12502,146.45,146.43,9.46]
[1727837163306,0.12502,146.45,146.39,2.7327]
[1727837163493,0.12502,146.45,146.41,9.46]
[1727837165413,0.12502,146.45,146.43,2.732]
[1727837166307,0.12502,146.45,146.37,57.72966162]
[1727837166507,9.58502,146.45,146.41,2.7322]
[1727837167009,2.85672,146.45,146.42,2.7321]
[1727837167402,0.12502,146.45,146.42,2.7321]
[1727837167601,0.12502,146.45,146.43,2.7319]
[1727837167804,0.12502,146.45,146.42,9.46]
[1727837168003,0.12502,146.45,146.44,9.46]
[1727837168504,0.12502,146.45,146.44,2.7319]
[1727837169306,0.12502,146.45,146.42,2.7321]
[1727837169710,2.7321,146.43,146.4,2.7325]
[1727837170404,12.1921,146.43,146.4,2.7325]
[1727837170606,9.46,146.42,146.37,67.18966162]
[1727837170811,9.46,146.43,146.38,9.46]
[1727837171601,3.51605769,146.45,146.41,2.7324]
[1727837171602,12.1919,146.44,146.41,2.7324]
[1727837171807,9.46,146.43,146.38,9.46]
[1727837172007,12.1922,146.43,146.39,2.7327]
[1727837172312,3.58982045,146.45,146.35,9.46]
[1727837172313,9.46,146.4,146.35,9.46]
[1727837172503,9.46,146.38,146.34,1.3996]
[1727837172707,9.46,146.38,146.35,2.7334]
[1727837172918,9.46,146.38,146.33,9.58502]
[1727837173203,9.46,146.38,146.34,2.7337]
[1727837173204,12.193,146.38,146.34,2.7337]
[1727837173397,12.193,146.38,146.33,9.58502]
[1727837174010,9.46,146.38,146.33,9.58502]
[1727837174406,9.46,146.4,146.35,9.46]
[1727837174707,12.1926,146.4,146.33,0.12502]
[1727837174899,12.1926,146.4,146.34,9.46]
[1727837175509,9.46,146.4,146.34,9.46]
[1727837176000,12.1931,146.38,146.34,9.46]
[1727837176410,9.46,146.38,146.34,9.46]
[1727837176608,9.46,146.38,146.36,2.7333]
[1727837177403,2.7325,146.41,146.37,2.7331]
[1727837177611,2.7325,146.41,146.35,9.46]
[1727837177612,2.5943,146.42,146.35,9.46]
[1727837177915,9.46,146.41,146.35,9.46]
[1727837178303,12.1926,146.41,146.37,2.733]
[1727837179511,12.1926,146.41,146.38,2.7328]
[1727837182515,12.1921,146.43,146.37,9.46]
[1727837182713,9.46,146.43,146.39,9.46]
[1727837182918,12.31672,146.45,146.4,12.1925]
[1727837183120,12.31672,146.45,146.4,9.46]
[1727837183817,12.31672,146.45,146.42,2.7322]
[1727837184520,9.46,146.44,146.39,9.46]
[1727837185226,12.1919,146.44,146.41,2.7323]
[1727837185416,0.12502,146.45,146.41,9.46]
[1727837185825,0.12502,146.45,146.44,12.1919]
[1727837187119,0.12502,146.45,146.44,2.7319]
[1727837189522,0.12502,146.45,146.44,12.1919]
[1727837191610,0.12502,146.45,146.44,2.7319]
[1727837192015,0.12502,146.45,146.44,12.1919]
[1727837193919,0.12502,146.51,146.49,2.7308]
[1727837194119,0.12502,146.51,146.49,12.1908]
[1727837195319,0.12502,146.51,146.5,2.7307]
[1727837195820,73.76,146.64,146.5,9.46]